fUSD/lending_fUSD_20241006
["ID","MTS","AMOUNT","RATE_DAILY","PERIOD"]
[339956347,1728215432213,-105098.34893473,0.00010781,2]
[339956348,1728215432222,-11323.7031,0.00010895,2]
[339956349,1728215432232,-3357.24507495,0.00010899,2]
[339956350,1728215432242,-318.36300324,0.000109,2]
[339956351,1728215432252,-499.99,0.000109,2]
[339956352,1728215432261,-200.0,0.00010959,2]
[339956353,1728215432271,-162.93,0.00010959,2]
[339956354,1728215432282,-811.85,0.00010959,2]
[339956355,1728215432292,-161.62,0.00010959,2]
[339956356,1728215432302,-250.0,0.00010959,2]
[339956357,1728215432313,-164.58,0.00010959,2]
[339956358,1728215432322,-406.2249484,0.00010992,2]
[339956359,1728215432332,-443.1544891,0.00010992,2]
[339956360,1728215432342,-480.0840299,0.00010992,2]
[339956361,1728215432351,-517.0135707,0.00010992,2]
[339956362,1728215432361,-553.9431114,0.00010992,2]
[339956363,1728215432371,-118490.94973765,0.00010995,2]
[339956364,1728215438309,-1117.71596049,0.00010995,2]
[339956391,1728215440077,-517.05428338,0.00010995,2]
[339956392,1728215440089,-505.19812373,0.00010995,2]
[339956399,1728215443163,-1246.04181241,0.00010995,2]
[339956402,1728215446046,-763.20008669,0.00010995,2]
[339956403,1728215446059,-1628.00194221,0.00010995,2]
[339956404,1728215446071,-7987.66813717,0.00010995,2]
[339956405,1728215446151,-641.74396344,0.00010995,2]
[339956406,1728215936029,150.0,0.00010125,2]
[339956407,1728215936051,100.0,0.00010125,2]
[339956408,1728215952597,150.0,0.00010107,2]
[339956409,1728215952618,39.22,0.00010107,2]
[339956410,1728215998209,628.19,8.219e-05,2]
[339956411,1728216019856,150.0,0.00010087,2]
[339956412,1728216019882,150.0,0.00010087,2]
[339956413,1728216019908,150.0,0.00010087,2]
[339956414,1728216019931,150.0,0.00010087,2]
[339956415,1728216019954,150.0,0.00010087,2]
[339956416,1728216019979,250.0,0.00010087,2]
[339956417,1728216040828,150.0,0.00010107,2]
[339956418,1728216040849,150.0,0.00010107,2]
[339956419,1728216040869,119.93,0.00010107,2]
[339956421,1728216065187,250.0,0.00010087,2]
[339956426,1728216098775,2116.0,0.00023,120]
[339956427,1728216102768,158.01,0.00010107,2]
[339956428,1728216103182,150.0,0.00010124,2]
[339956429,1728216103208,8.01,0.00010124,2]
[339956430,1728216103435,141.99,0.00010141,2]
[339956431,1728216103454,16.02,0.00010141,2]
[339956432,1728216103637,133.98,0.00010158,2]
[339956433,1728216103659,24.03,0.00010158,2]
[339956452,1728216419876,125.97,0.00010103,2]
[339956453,1728216419899,24.03,0.00010103,2]
[339956454,1728216447868,125.97,0.00010103,2]
[339956455,1728216447887,124.03,0.00010103,2]
[339956456,1728216519596,150.0,0.00010088,2]
[339956457,1728216519618,16.5,0.00010088,2]
[339956465,1728216632268,-587.20002,0.00010481,2]
[339956466,1728216632279,-40.98998,0.00010481,2]
[339956467,1728216632289,-517.053,0.00010695,2]
[339956468,1728216632298,-150.0,0.00010794,2]
[339956469,1728216632307,-169.15326056,0.00010795,2]
[339956475,1728216634398,250.0,0.00010116,2]
[339956481,1728216638556,-1200.0,0.00010795,2]
[339956482,1728216638571,-691.99123944,0.00010795,2]
[339956483,1728216638581,-894.0289,0.00010795,2]
[339956484,1728216638590,-312.592,0.00010795,2]
[339956485,1728216638599,-42582.0799,0.00010795,2]
[339956486,1728216638608,-154.9008,0.00010795,2]
[339956487,1728216638618,-827.350988,0.000108,2]
[339956488,1728216638628,-276.5,0.00010885,2]
[339956489,1728216638638,-276.5,0.00010885,2]
[339956490,1728216638647,-276.5,0.00010885,2]
[339956492,1728216638658,-276.5,0.00010885,2]
[339956494,1728216638667,-276.5,0.00010885,2]
[339956495,1728216638676,-276.5,0.00010885,2]
[339956497,1728216638686,-276.5,0.00010885,2]
[339956499,1728216638695,-276.5,0.00010885,2]
[339956501,1728216638705,-276.5,0.00010885,2]
[339956503,1728216638714,-276.5,0.0001089,2]
[339956505,1728216638723,-14104.30082552,0.00010895,2]
[339956507,1728216638734,-36415.16488013,0.00010895,2]
[339956564,1728216640163,-722.35500004,0.00010895,2]
[339956565,1728216640178,-621.93,0.00010895,2]
[339956566,1728216640373,-12435.4,0.00010895,2]
[339956849,1728216643302,-428.33999989,0.00010895,2]
[339956859,1728216643356,-14144.35539442,0.00010895,2]
[339956862,1728216643367,-1000.0,0.00010895,2]
[339956865,1728216643376,-500.0,0.00010895,2]
[339956867,1728216643385,-466.7917,0.00010895,2]
[339956870,1728216643396,-51440.87658265,0.00010895,2]
[339957174,1728216646275,-366.17275783,0.00010895,2]
[339957205,1728216736961,150.0,8.272e-05,2]
[339957206,1728216736982,150.0,8.272e-05,2]
[339957207,1728216737004,150.0,8.272e-05,2]
[339957208,1728216737025,150.0,8.272e-05,2]
[339957209,1728216737045,20.53,8.272e-05,2]
[339957210,1728216788951,284.62907352,8.22e-05,2]
[339957211,1728216806388,150.0,0.00010173,2]
[339957212,1728216806407,150.0,0.00010173,2]
[339957213,1728216806427,95.15,0.00010173,2]
[339957214,1728216945376,150.0,0.00010165,2]
[339957215,1728216945397,100.0,0.00010165,2]
[339957216,1728217172998,695.55,0.00010164,2]
[339957217,1728217456766,150.0,8.274e-05,2]
[339957218,1728217456787,150.0,8.274e-05,2]
[339957219,1728217456808,150.0,8.274e-05,2]
[339957220,1728217456834,139.5,8.274e-05,2]
[339957221,1728217475372,150.0,0.00010168,2]
[339957222,1728217475391,100.0,0.00010168,2]
[339957223,1728217554989,997.11,6.94e-05,2]
[339957224,1728217636129,-307.10851775,0.00010242,2]
[339957226,1728217706722,150.0,0.00010188,2]
[339957227,1728217706749,150.0,0.00010188,2]
[339957228,1728217706775,150.0,0.00010188,2]
[339957229,1728217706798,150.0,0.00010188,2]
[339957230,1728217706821,150.0,0.00010188,2]
[339957231,1728217706850,250.0,0.00010188,2]
[339957232,1728217718274,178.83,0.0001,2]
[339957250,1728217764913,357.55,0.00010191,2]
[339957251,1728217766617,150.0,0.00010186,2]
[339957252,1728217766641,28.76,0.00010186,2]
[339957253,1728217766669,121.24,0.00010186,2]
[339957254,1728217766692,28.76,0.00010186,2]
[339957264,1728217832301,-441.93854479,0.00010538,2]
[339957266,1728217832313,-147.56145521,0.00010538,2]
[339957268,1728217832322,-300.0,0.00010794,2]
[339957269,1728217832332,-24.38947499,0.00010795,2]
[339957270,1728217832344,-9970.58211018,0.00010795,2]
[339957271,1728217832355,-791.24822385,0.00010795,2]
[339957272,1728217832366,-431.36387479,0.00010795,2]
[339957273,1728217832378,-967.27431619,0.00010795,2]
[339957274,1728217832388,-2010.358023,0.00010895,2]
[339957275,1728217832463,-365.06759219,0.00010895,2]
[339957276,1728217832475,-494.60842309,0.00010895,2]
[339957277,1728217832579,-1151.55012815,0.00010895,2]
[339957278,1728217832590,-1007.07587274,0.00010895,2]
[339957285,1728217838529,-838.45496393,0.00010895,2]
[339957286,1728217838757,-1706.22595138,0.00010895,2]
[339957287,1728217838769,-1070.70831661,0.00010895,2]
[339957288,1728217838780,-2861.71152891,0.00010895,2]
[339957289,1728217838792,-142.23753106,0.00010899,2]
[339957290,1728217838807,-470.04529828,0.00010899,2]
[339957291,1728217838818,-300.0,0.00010899,2]
[339957292,1728217838828,-1594.97703,0.00010899,2]
[339957352,1728218014157,150.0,0.00010138,2]
[339957353,1728218014181,100.0,0.00010138,2]
[339957354,1728218096054,169.13,0.00010138,2]
[339957355,1728218193496,2031.80675097,0.00023,120]
[339957356,1728218205255,1284.45049156,0.00023,120]
[339957357,1728218278612,200.0,0.00010005,2]
[339957358,1728218318025,150.0,8.219e-05,2]
[339957359,1728218318046,150.0,8.219e-05,2]
[339957360,1728218318065,150.0,8.219e-05,2]
[339957361,1728218318086,150.0,8.219e-05,2]
[339957362,1728218318105,150.0,8.219e-05,2]
[339957363,1728218318125,49.69,8.219e-05,2]
[339957364,1728218329615,720.57,9.986e-05,2]
[339957365,1728218444889,391.56,9.999e-05,2]
[339957366,1728218531871,2453.0,0.00023,120]
[339957367,1728218532059,2453.0,0.00023,120]
[339957368,1728218532231,2453.0,0.00023,120]
[339957369,1728218532623,2453.0,0.00023,120]
[339957370,1728218532864,2453.0,0.00023,120]
[339957371,1728218533049,2144.74275747,0.00023,120]
[339957372,1728218609849,150.0,9.987e-05,2]
[339957373,1728218609869,19.13,9.987e-05,2]
[339957374,1728218703381,250.0,9.995e-05,2]
[339957375,1728218822201,778.39,8.219e-05,2]
[339957380,1728218864295,840.0,0.00010002,2]
[339957383,1728218903371,556.44,9.996e-05,2]
[339957385,1728218956579,750.0,9.996e-05,2]
[339957386,1728218956628,173.74,9.996e-05,2]
[339957389,1728219022033,195.78,9.992e-05,2]
[339957401,1728219031492,-2417.64878082,0.00010428,2]
[339957402,1728219031506,-7582.35121918,0.00010428,2]
[339957403,1728219031517,-778.39,0.00010476,2]
[339957404,1728219031526,-213.782818,0.00010685,2]
[339957405,1728219031536,-320.674227,0.00010685,2]
[339957406,1728219031692,-213.782818,0.00010818,2]
[339957407,1728219031707,-320.674227,0.00010818,2]
[339957408,1728219031717,-3303.4273,0.0001088,2]
[339957409,1728219031727,-522.79243652,0.00010894,2]
[339957410,1728219031736,-150.0,0.00010894,2]
[339957411,1728219031745,-305.8155,0.00010895,2]
[339957412,1728219031755,-493.1894,0.00010895,2]
[339957413,1728219031765,-19179.9168,0.00010895,2]
[339957414,1728219031774,-2398.9074,0.00010895,2]
[339957415,1728219031783,-255.9129,0.00010895,2]
[339957416,1728219031792,-2000.0,0.00010899,2]
[339957417,1728219031801,-200.0,0.00010899,2]
[339957418,1728219031811,-822.48,0.00010899,2]
[339957420,1728219031820,-6852.57573613,0.00010899,2]
[339957422,1728219031829,-1461.43,0.00010899,2]
[339957423,1728219031839,-150.99,0.00010899,2]
[339957425,1728219031848,-499.99,0.00010899,2]
[339957428,1728219031857,-999.99,0.00010899,2]
[339957431,1728219031866,-323.8860748,0.000109,2]
[339957433,1728219031876,-220.60246218,0.000109,2]
[339957435,1728219031885,-153.73177365,0.000109,2]
[339957437,1728219031895,-186.65,0.000109,2]
[339957438,1728219031904,-172.17090236,0.000109,2]
[339957440,1728219031913,-207.18361201,0.000109,2]
[339957442,1728219031923,-208.87752844,0.000109,2]
[339957444,1728219031932,-1706.61205642,0.0001095,2]
[339957446,1728219031942,-213.782818,0.00010952,2]
[339957448,1728219031951,-320.674227,0.00010952,2]
[339957450,1728219031961,-200.0,0.00010959,2]
[339957452,1728219031973,-163.86,0.00010959,2]
[339957453,1728219031982,-162.93,0.00010959,2]
[339957455,1728219031992,-1762.03,0.00010959,2]
[339957456,1728219032002,-161.25,0.00010959,2]
[339957457,1728219032011,-519.89,0.00010959,2]
[339957458,1728219032020,-250.0,0.00010959,2]
[339957459,1728219032030,-150.0,0.00010959,2]
[339957460,1728219032039,-161.34,0.00010959,2]
[339957461,1728219032049,-35006.87365824,0.0001097,2]
[339957462,1728219037922,-27359.19722421,0.0001097,2]
[339957463,1728219037933,-8355.461751,0.0001097,2]
[339957464,1728219037945,-6453.34439666,0.0001097,2]
[339957468,1728219039644,-608.575,0.0001097,2]
[339957469,1728219039657,-796999.87681333,0.0001097,2]
[339957470,1728219039667,-500.0,0.00010973,2]
[339957471,1728219039677,-500.0,0.00010973,2]
[339957472,1728219039686,-502.22814817,0.00010973,2]
[339957473,1728219039695,-232.8972974,0.00010973,2]
[339957474,1728219039705,-211.99856331,0.00010973,2]
[339957475,1728219039714,-453.778,0.00010978,2]
[339957476,1728219039724,-1297.0,0.00010978,2]
[339957477,1728219039734,-626.0,0.00010978,2]
[339957478,1728219039743,-811.0,0.00010978,2]
[339957479,1728219039752,-934.0,0.00010978,2]
[339957480,1728219039762,-3352.0,0.00010978,2]
[339957481,1728219039771,-1906.0,0.00010978,2]
[339957482,1728219039781,-552.0,0.00010978,2]
[339957483,1728219039790,-1910.0,0.00010978,2]
[339957484,1728219039799,-808.0,0.00010978,2]
[339957485,1728219039809,-150.0,0.00010978,2]
[339957486,1728219039818,-150.0,0.00010978,2]
[339957487,1728219039827,-1149.0,0.00010978,2]
[339957488,1728219039836,-5867.0,0.00010978,2]
[339957489,1728219039845,-250.0,0.00010978,2]
[339957490,1728219039855,-1082.0,0.00010978,2]
[339957491,1728219039864,-219.0,0.00010978,2]
[339957492,1728219039874,-26842.28261896,0.0001098,2]
[339957493,1728219039884,-190.84835501,0.00010985,2]
[339957494,1728219039893,-812.1138249,0.00010988,2]
[339957495,1728219039903,-715.3260947,0.00010988,2]
[339957496,1728219039912,-618.5383645,0.00010988,2]
[339957497,1728219039921,-521.7506343,0.00010988,2]
[339957498,1728219039930,-424.962904,0.00010988,2]
[339957499,1728219039940,-328.1751738,0.00010988,2]
[339957500,1728219039949,-641.2051574,0.00010988,2]
[339957502,1728219039958,-564.7863232,0.00010988,2]
[339957504,1728219039967,-488.3674889,0.00010988,2]
[339957506,1728219039976,-411.9486546,0.00010988,2]
[339957507,1728219039986,-335.5298203,0.00010988,2]
[339957509,1728219039995,-259.1109861,0.00010988,2]
[339957511,1728219040004,-2175.6592156,0.00010988,2]
[339957513,1728219040013,-1917.2232052,0.00010988,2]
[339957514,1728219040022,-1658.7871949,0.00010988,2]
[339957515,1728219040031,-1400.3511846,0.00010988,2]
[339957516,1728219040040,-1141.9151743,0.00010988,2]
[339957517,1728219040049,-883.479164,0.00010988,2]
[339957518,1728219040058,-984.1709683,0.00010992,2]
[339957519,1728219040067,-1097.0246642,0.00010992,2]
[339957520,1728219040076,-1209.8783602,0.00010992,2]
[339957521,1728219040085,-1322.7320561,0.00010992,2]
[339957522,1728219040095,-1435.5857521,0.00010992,2]
[339957523,1728219040104,-3396.15114589,0.00010994,2]
[339957524,1728219040113,-500.0,0.00010994,2]
[339957525,1728219040122,-500.0,0.00010994,2]
[339957526,1728219040131,-410.9575213,0.00010994,2]
[339957527,1728219040140,-347.78045489,0.00010994,2]
[339957528,1728219040150,-288.30589223,0.00010994,2]
[339957529,1728219040159,-429.68806442,0.00010994,2]
[339957530,1728219040168,-635561.13134857,0.00010995,2]
[339957531,1728219040177,-151.898263,0.00010995,2]
[339957532,1728219040186,-151.0,0.00010995,2]
[339957533,1728219040195,-207.609945,0.00010995,2]
[339957534,1728219040204,-207.609945,0.00010995,2]
[339957535,1728219040213,-264.337,0.00010999,2]
[339957536,1728219040222,-163.664,0.00010999,2]
[339957537,1728219040231,-172.967,0.00010999,2]
[339957538,1728219040240,-285.807,0.00010999,2]
[339957539,1728219040249,-150.0,0.00010999,2]
[339957540,1728219040258,-151.102,0.00010999,2]
[339957541,1728219040266,-168.843,0.00010999,2]
[339957542,1728219040275,-150.155,0.00010999,2]
[339957543,1728219040284,-152.21,0.00010999,2]
[339957544,1728219040292,-170.943,0.00010999,2]
[339957545,1728219040301,-152.219,0.00010999,2]
[339957546,1728219040313,-152.149,0.00010999,2]
[339957547,1728219040322,-150.0,0.00010999,2]
[339957548,1728219040331,-150.0,0.00010999,7]
[339957549,1728219040340,-928049.08350364,0.00011,2]
[339957550,1728219040351,-164.230437,0.00011,2]
[339957551,1728219040362,-208.0,0.00011,2]
[339957552,1728219040371,-208.0,0.00011,2]
[339957553,1728219040379,-208.0,0.00011,2]
[339957554,1728219040388,-208.0,0.00011,2]
[339957555,1728219040397,-208.0,0.00011,2]
[339957556,1728219040406,-208.0,0.00011,2]
[339957557,1728219040415,-208.0,0.00011,2]
[339957558,1728219040425,-208.0,0.00011,2]
[339957559,1728219040434,-208.0,0.00011,2]
[339957560,1728219040443,-208.0,0.00011,2]
[339957561,1728219040452,-208.0,0.00011,2]
[339957562,1728219040461,-224.0,0.00011,2]
[339957563,1728219040470,-202.0,0.00011,2]
[339957564,1728219040479,-202.0,0.00011,2]
[339957565,1728219040488,-202.0,0.00011,2]
[339957566,1728219040498,-202.0,0.00011,2]
[339957567,1728219040509,-208.0,0.00011,2]
[339957568,1728219040520,-208.0,0.00011,2]
[339957569,1728219040529,-208.0,0.00011,2]
[339957570,1728219040538,-208.0,0.00011,2]
[339957571,1728219040547,-1172962.49709432,0.00011,2]
[339957606,1728219042756,-2778.03206089,0.00010435,2]
[339957607,1728219042865,-381.11366734,0.00010435,2]
[339957612,1728219045534,-292.81752801,0.00010435,2]
[339957613,1728219045854,-1124.9464015,0.00010435,2]
[339957615,1728219322380,150.0,8.265e-05,2]
[339957616,1728219322402,150.0,8.265e-05,2]
[339957617,1728219322424,150.0,8.265e-05,2]
[339957618,1728219322446,268.3,8.265e-05,2]
[339957619,1728219386424,328.0,0.00010191,2]
[339957620,1728219427647,150.0,0.00010191,2]
[339957621,1728219427669,27.46,0.00010191,2]
[339957622,1728219476502,150.0,0.00010191,2]
[339957623,1728219476523,43.51,0.00010191,2]
[339957624,1728219533528,150.0,0.00010138,2]
[339957625,1728219533550,97.89,0.00010138,2]
[339957627,1728219765314,52.11,0.00010108,2]
[339957628,1728219765335,150.0,0.00010108,2]
[339957629,1728219765357,47.89,0.00010108,2]
[339957630,1728219832822,102.11,8.224e-05,2]
[339957631,1728219832843,150.0,8.224e-05,2]
[339957632,1728219832864,271.7148196,8.224e-05,2]
[339957633,1728219832885,158.5551804,8.224e-05,2]
[339957634,1728219835113,-4415.65630549,0.00010438,2]
[339957635,1728219835136,-682.38,0.00010488,2]
[339957636,1728219835158,-173.32,0.00010578,2]
[339957637,1728219835180,-186.465311,0.00010685,2]
[339957638,1728219835206,-186.465311,0.00010818,2]
[339957639,1728219835227,-300.0,0.00010894,2]
[339957640,1728219835249,-7448.5301,0.00010895,2]
[339957641,1728219835271,-442.24206698,0.000109,2]
[339957642,1728219835293,-621.93,0.000109,2]
[339957643,1728219835316,-1000.0,0.000109,2]
[339957644,1728219835338,-6990.27461515,0.000109,2]
[339957645,1728219835360,-35155.174,0.000109,2]
[339957646,1728219835382,-192.56451016,0.000109,2]
[339957647,1728219835404,-186.465311,0.00010952,2]
[339957648,1728219835425,-200.0,0.00010959,2]
[339957649,1728219835446,-1863.72,0.00010959,2]
[339957650,1728219835472,-250.0,0.00010959,2]
[339957651,1728219835499,-163.86,0.00010959,2]
[339957652,1728219835522,-250.0,0.00010986,2]
[339957653,1728219835543,-268.935,0.00010986,2]
[339957654,1728219835567,-499.99,0.00010986,2]
[339957655,1728219835589,-150.0,0.00010989,2]
[339957656,1728219835610,-150.0,0.00010989,2]
[339957657,1728219835631,-150.0,0.00010989,2]
[339957658,1728219835652,-150.116,0.00010989,2]
[339957659,1728219835673,-150.0,0.00010989,2]
[339957660,1728219835694,-626.0,0.00010989,2]
[339957661,1728219835716,-1297.0,0.00010989,2]
[339957662,1728219835737,-449.0,0.00010989,2]
[339957663,1728219835758,-811.0,0.00010989,2]
[339957664,1728219835780,-150.0,0.00010989,2]
[339957665,1728219835802,-157.383,0.00010989,2]
[339957666,1728219835823,-534.891,0.00010989,2]
[339957667,1728219835844,-265.509,0.00010989,2]
[339957668,1728219835866,-1082.0,0.00010989,2]
[339957669,1728219836015,-3347.0,0.00010989,2]
[339957670,1728219836039,-657.752,0.00010989,2]
[339957671,1728219836068,-1198.503,0.00010989,2]
[339957672,1728219836090,-808.0,0.00010989,2]
[339957673,1728219836112,-172.4,0.00010989,2]
[339957674,1728219836134,-321.25754083,0.00010999,2]
[339957675,1728219836155,-500.0,0.00010999,2]
[339957676,1728219836177,-161.89647513,0.00010999,2]
[339957677,1728219836200,-500.0,0.00010999,2]
[339957678,1728219836221,-500.0,0.00010999,2]
[339957679,1728219836242,-500.0,0.00010999,2]
[339957680,1728219836264,-259.47530301,0.00010999,2]
[339957681,1728219836289,-73472.84415025,0.00011,2]
[339957694,1728220231854,-198.95,0.00010658,2]
[339957695,1728220231864,-737.6,0.00010684,2]
[339957696,1728220231873,-642.21,0.00010686,2]
[339957697,1728220231882,-300.0,0.00010899,2]
[339957698,1728220231891,-5223.062,0.000109,2]
[339957699,1728220231901,-6291.24715368,0.000109,2]
[339957700,1728220231910,-250.0,0.00010959,2]
[339957701,1728220231919,-162.93,0.00010959,2]
[339957702,1728220231928,-150.0,0.00010989,2]
[339957703,1728220231937,-1005.2,0.00010989,2]
[339957704,1728220231948,-691.26707613,0.00010995,2]
[339957705,1728220231959,-3109.92662197,0.00010995,2]
[339957706,1728220231968,-80.74197803,0.00011,2]
[339957708,1728220237732,-23777.0979467,0.00011,2]
[339957712,1728220238094,-12493.39392901,0.00011,2]
[339957727,1728220239795,-506.18499992,0.00011,2]
[339957740,1728220242707,-1806.49803386,0.00011,2]
[339957743,1728220242763,-12457.26988001,0.00011,2]
[339957744,1728220242875,-680.3546727,0.00011,2]
[339957745,1728220242886,-764.825,0.00011,2]
[339957746,1728220242930,-11886.30117644,0.00011,2]
[339957747,1728220242942,-12611.58875453,0.00011,2]
[339957748,1728220242954,-701.62678986,0.00011,2]
[339957749,1728220242965,-294.14994472,0.00011,2]
[339957750,1728220243040,-21220.78577,0.00011,2]
[339957751,1728220243051,-34426.799998,0.00011,2]
[339957755,1728220245687,-1516.08396786,0.00011,2]
[339957756,1728220245741,-629.75882297,0.00011,2]
[339957757,1728220245752,-6092.74219067,0.00011,2]
[339957758,1728220245763,-389.63124367,0.00011,2]
[339957759,1728220245775,-2570.41893268,0.00011,2]
[339957765,1728220246335,-719.23999998,0.00011,2]
[339957766,1728220246347,-3871.59662795,0.00011,2]
[339957767,1728220246360,-1572.36945827,0.00011,2]
[339957768,1728220246372,-609.65248368,0.00011,2]
[339957769,1728220246383,-3169.18151143,0.00011,2]
[339957770,1728220246394,-281.818872,0.00011,2]
[339957771,1728220246407,-264.208,0.00011,2]
[339957772,1728220246419,-300.0,0.00011,2]
[339957773,1728220246431,-291.09122005,0.00011,2]
[339957774,1728220246445,-559.10547503,0.00011,2]
[339957775,1728220246574,-4830.67459335,0.00011,2]
[339957776,1728220246591,-4336.80998317,0.00011,2]
[339957777,1728220246602,-344.831931,0.00011,2]
[339957778,1728220319512,632.63,8.736e-05,2]
[339957779,1728220420279,748.0,0.000219,120]
[339957784,1728220599825,198.95,0.00010167,2]
[339957785,1728220820396,250.0,0.00010201,2]
[339957786,1728220847334,150.0,8.33e-05,2]
[339957787,1728220847359,150.0,8.33e-05,2]
[339957788,1728220847380,150.0,8.33e-05,2]
[339957789,1728220847401,150.0,8.33e-05,2]
[339957790,1728220847421,0.99,8.33e-05,2]
[339957792,1728220938923,150.0,0.00010229,2]
[339957793,1728220938945,150.0,0.00010229,2]
[339957794,1728220938966,150.0,0.00010229,2]
[339957795,1728220938987,140.08,0.00010229,2]
[339957797,1728221142905,150.0,0.00010227,2]
[339957798,1728221159673,150.0,0.00010227,2]
[339957799,1728221229160,-307.10970073,0.00010241,2]
[339957838,1728221413111,578.45,8.417e-05,2]
[339957854,1728221431913,-102.81029927,0.00010241,2]
[339957855,1728221431923,-231.69717335,0.00010253,2]
[339957856,1728221431934,-213.45282665,0.00010253,2]
[339957857,1728221431943,-231.97,0.00010253,2]
[339957858,1728221431953,-250.0,0.00010267,2]
[339957859,1728221431962,-578.45,0.00010681,2]
[339957860,1728221431972,-1295.828,0.0001073,2]
[339957861,1728221431982,-353.79365356,0.000109,2]
[339957862,1728221431991,-605.92898484,0.000109,2]
[339957863,1728221432001,-895.17421751,0.000109,2]
[339957864,1728221432018,-566.54007379,0.000109,2]
[339957865,1728221432031,-834.81196786,0.000109,2]
[339957866,1728221432155,-3365.59617917,0.000109,2]
[339957867,1728221432167,-174.06460705,0.000109,2]
[339957868,1728221432177,-192.56451016,0.000109,2]
[339957869,1728221432187,-200.0,0.00010959,2]
[339957870,1728221432196,-1490.97,0.00010959,2]
[339957871,1728221432206,-162.01,0.00010959,2]
[339957872,1728221432216,-250.0,0.00010959,2]
[339957873,1728221432225,-161.18,0.00010959,2]
[339957874,1728221432235,-500.0,0.00010973,2]
[339957875,1728221432245,-101.58715721,0.00010973,2]
[339957891,1728221438132,-398.40284279,0.00010973,2]
[339957892,1728221438141,-473.44858279,0.00010973,2]
[339957893,1728221438150,-203.19335009,0.00010989,2]
[339957894,1728221438165,-253.039,0.00010989,2]
[339957895,1728221438176,-298.25,0.00010989,2]
[339957896,1728221438186,-53.51764991,0.00010989,2]
[339957897,1728221438196,-150.0,0.00010989,2]
[339957898,1728221438205,-626.0,0.00010989,2]
[339957899,1728221438214,-811.0,0.00010989,2]
[339957900,1728221438223,-41.52512439,0.00010989,2]
[339957963,1728221439959,-407.47487561,0.00010989,2]
[339957964,1728221439968,-527.4145133,0.00010995,2]
[339957965,1728221439977,-527.95399109,0.00010995,2]
[339957966,1728221440132,-1034.95493411,0.00010995,2]
[339957967,1728221440142,-160.62877041,0.00010999,2]
[339957968,1728221440151,-300.7816451,0.00010999,2]
[339957969,1728221440161,-166.60411628,0.00011,2]
[339957970,1728221440176,-494.09234019,0.00011,2]
[339958175,1728221443126,-323.04035056,0.00011,2]
[339958176,1728221443138,-322.056,0.00011,2]
[339958180,1728221445858,-534.96629786,0.00011,2]
[339958181,1728221445871,-487.94323696,0.00011,2]
[339958185,1728221445927,-499.0158655,0.00011,2]
[339958186,1728221445977,-1301.82344774,0.00011,2]
[339958189,1728221533414,-800.0,0.00010233,2]
[339958190,1728221544761,150.0,0.00010141,2]
[339958191,1728221544781,150.0,0.00010141,2]
[339958192,1728221544801,150.0,0.00010141,2]
[339958193,1728221544822,150.0,0.00010141,2]
[339958194,1728221544842,150.0,0.00010141,2]
[339958195,1728221544861,278.13,0.00010141,2]
[339958196,1728221544885,5496.2922,0.00010141,2]